fUSD/lending_fUSD_20260305
["ID","MTS","AMOUNT","RATE_DAILY","PERIOD"]
[407712706,1772698251604,-795.46336,0.00041688,30]
[407712707,1772698251614,-168.0,0.00041815,2]
[407712708,1772698251625,-1031.08,0.00041836,90]
[407712709,1772698251635,-300.0,0.00041876,30]
[407712710,1772698251645,-545.43138519,0.00041876,60]
[407712711,1772698251656,-637.51,0.00041876,120]
[407712712,1772698251666,-519.25,0.00041876,120]
[407712713,1772698251676,-642.68,0.00041876,2]
[407712714,1772698251685,-500.0,0.00041876,45]
[407712715,1772698251694,-168.0,0.00041881,120]
[407712716,1772698251704,-200.0,0.00041885,7]
[407712717,1772698251715,-200.0,0.00041885,7]
[407712718,1772698251728,-200.0,0.00041885,7]
[407712719,1772698251739,-200.0,0.00041885,7]
[407712720,1772698251748,-172.0,0.00041885,7]
[407712721,1772698251758,-795.46336,0.00041888,30]
[407712722,1772698251767,-153.0,0.000419,120]
[407712723,1772698251777,-151.0,0.000419,120]
[407712724,1772698251786,-188.04834978,0.000419,120]
[407712725,1772698251795,-2981.48,0.00041902,2]
[407712726,1772698251805,-3966.07,0.00041902,2]
[407712727,1772698251814,-151.0,0.00041902,120]
[407712728,1772698251825,-151.0,0.00041902,120]
[407712729,1772698251835,-151.0,0.00041902,120]
[407712730,1772698251845,-151.0,0.00041902,120]
[407712731,1772698251855,-151.0,0.00041902,120]
[407712732,1772698251873,-151.0,0.00041902,120]
[407712733,1772698251888,-151.413511,0.00041902,120]
[407712734,1772698251898,-151.0,0.00041902,120]
[407712735,1772698251908,-151.0,0.00041902,120]
[407712736,1772698251918,-151.413511,0.00041902,120]
[407712737,1772698251928,-151.413511,0.00041902,120]
[407712738,1772698251939,-151.0,0.00041902,120]
[407712739,1772698251948,-151.413511,0.00041902,120]
[407712740,1772698251957,-151.0,0.00041902,120]
[407712741,1772698251967,-151.0,0.00041902,120]
[407712742,1772698251977,-168.0,0.00041918,2]
[407712743,1772698251986,-600.0,0.00041918,10]
[407712744,1772698251996,-1000.0,0.00041918,10]
[407712745,1772698252005,-152.0,0.00041935,8]
[407712746,1772698252015,-1341.0,0.00041947,2]
[407712747,1772698252025,-150.0,0.00042,120]
[407712748,1772698252035,-307.0,0.00042,120]
[407712749,1772698252044,-307.0,0.00042,120]
[407712750,1772698252053,-307.0,0.00042,120]
[407712751,1772698252063,-307.0,0.00042,120]
[407712752,1772698252073,-307.0,0.00042,120]
[407712753,1772698252083,-307.0,0.00042,120]
[407712754,1772698252092,-307.0,0.00042,120]
[407712755,1772698252102,-307.0,0.00042,120]
[407712756,1772698252112,-307.0,0.00042,120]
[407712757,1772698252122,-307.0,0.00042,120]
[407712758,1772698252132,-306.0,0.00042,120]
[407712759,1772698252141,-306.0,0.00042,120]
[407712760,1772698252151,-306.0,0.00042,120]
[407712761,1772698252160,-306.0,0.00042,120]
[407712762,1772698252170,-306.0,0.00042,120]
[407712763,1772698252180,-306.0,0.00042,120]
[407712764,1772698252190,-306.0,0.00042,120]
[407712765,1772698252199,-306.0,0.00042,120]
[407712766,1772698252209,-306.0,0.00042,120]
[407712767,1772698252219,-306.0,0.00042,120]
[407712768,1772698252228,-306.0,0.00042,120]
[407712769,1772698252237,-330.13062258,0.00042,45]
[407712770,1772698252247,-724.6946398,0.00042,120]
[407712771,1772698252257,-172.25318315,0.00042,120]
[407712772,1772698252267,-1083.89708103,0.00042,120]
[407712773,1772698252276,-220.06339271,0.00042,30]
[407712774,1772698252286,-794.7116516,0.00042,120]
[407712775,1772698252295,-4018.33835854,0.00042,120]
[407712776,1772698252305,-643.27945649,0.00042,120]
[407712777,1772698252315,-507.67828393,0.00042,120]
[407712778,1772698252324,-353.65377743,0.00042,60]
[407712779,1772698252334,-207.25279163,0.00042,14]
[407712780,1772698252344,-151.0,0.00042,120]
[407712781,1772698252353,-190.555767,0.00042,120]
[407712782,1772698252363,-151.0,0.00042,120]
[407712783,1772698252372,-151.0,0.00042,120]
[407712784,1772698252382,-151.0,0.00042,120]
[407712785,1772698252391,-151.0,0.00042,120]
[407712786,1772698252401,-151.0,0.00042,120]
[407712787,1772698252410,-151.0,0.00042,120]
[407712788,1772698252424,-151.0,0.00042,30]
[407712789,1772698252433,-250.051861,0.00042,120]
[407712790,1772698252444,-151.0,0.00042,120]
[407712791,1772698252455,-151.0,0.00042,30]
[407712792,1772698252465,-156.660299,0.00042,120]
[407712793,1772698252475,-151.0,0.00042,60]
[407712794,1772698252485,-151.0,0.00042,60]
[407712795,1772698252495,-151.0,0.00042,120]
[407712796,1772698252505,-266.489507,0.00042,120]
[407712797,1772698252515,-151.0,0.00042,120]
[407712798,1772698252525,-266.489507,0.00042,120]
[407712799,1772698252537,-151.0,0.00042,120]
[407712800,1772698252547,-266.489507,0.00042,120]
[407712801,1772698252557,-247.092144,0.00042,120]
[407712802,1772698252567,-266.489507,0.00042,120]
[407712803,1772698252579,-151.0,0.00042,120]
[407712804,1772698252589,-247.092144,0.00042,120]
[407712805,1772698252598,-151.0,0.00042,120]
[407712806,1772698252610,-247.092144,0.00042,120]
[407712807,1772698252620,-247.092144,0.00042,120]
[407712808,1772698252630,-167.12941,0.00042,120]
[407712809,1772698252641,-168.0,0.00042048,2]
[407712810,1772698252652,-921.0,0.00042082,2]
[407712811,1772698252669,-1212.0,0.00042082,2]
[407712812,1772698252678,-207.13030045,0.00042087,5]
[407712813,1772698252688,-5989.0,0.00042094,2]
[407712814,1772698252698,-2459.0,0.00042094,2]
[407712815,1772698252707,-364.8,0.000421,120]
[407712816,1772698252718,-168.0,0.00042172,2]
[407712817,1772698252728,-150.0,0.00042173,120]
[407712818,1772698252738,-183.75782658,0.00042191,120]
[407712819,1772698252747,-339.41571392,0.00042192,10]
[407712820,1772698252757,-952.34625423,0.00042192,7]
[407712821,1772698252767,-350.0,0.00042192,10]
[407712822,1772698252778,-306.61635286,0.00042198,2]
[407712823,1772698252788,-300.0,0.00042198,2]
[407712824,1772698252798,-300.0,0.00042198,2]
[407712825,1772698252813,-300.0,0.00042198,2]
[407712826,1772698252827,-409.10557655,0.00042198,2]
[407712827,1772698252838,-1048.50100127,0.00042198,2]
[407712828,1772698252849,-856.13486002,0.00042198,2]
[407712829,1772698252859,-306.8296831,0.00042198,2]
[407712830,1772698252870,-300.0,0.00042198,2]
[407712831,1772698252880,-1084.19175733,0.00042198,2]
[407712832,1772698252891,-300.0,0.00042198,2]
[407712833,1772698252901,-300.0,0.00042198,2]
[407712834,1772698252911,-497.60819881,0.00042216,14]
[407712835,1772698252921,-168.0,0.00042279,2]
[407712836,1772698252931,-1065.11,0.0004241,120]
[407712837,1772698252940,-168.0,0.00042417,2]
[407712838,1772698252950,-168.0,0.00042426,2]
[407712839,1772698252960,-500.0,0.00042438,120]
[407712840,1772698252970,-500.0,0.00042438,120]
[407712841,1772698252980,-245.37276384,0.00042494,7]
[407712842,1772698252990,-150.0,0.000425,120]
[407712843,1772698253000,-2651.5445,0.000425,7]
[407712844,1772698253010,-454.71,0.000425,14]
[407712845,1772698253020,-878.63212158,0.000425,120]
[407712846,1772698253030,-9999.40510104,0.000425,120]
[407712847,1772698253039,-500.0,0.00042575,120]
[407712848,1772698253049,-500.0,0.00042575,120]
[407712849,1772698253059,-200.0,0.000426,23]
[407712850,1772698253069,-152.0,0.00042643,9]
[407712851,1772698253080,-168.0,0.00042684,2]
[407712852,1772698253091,-458.99543956,0.000427,120]
[407712853,1772698253100,-500.0,0.00042712,120]
[407712854,1772698253111,-500.0,0.00042712,120]
[407712855,1772698253121,-860.0,0.00042716,120]
[407712856,1772698253131,-864.0,0.00042716,120]
[407712857,1772698253141,-518.0,0.00042716,120]
[407712858,1772698253151,-311.0,0.00042716,120]
[407712859,1772698253160,-784.32,0.0004273,90]
[407712860,1772698253170,-900.0,0.0004274,10]
[407712861,1772698253181,-450.0,0.0004274,10]
[407712862,1772698253192,-571.27818364,0.0004274,120]
[407712863,1772698253205,-171.867,0.00042756,2]
[407712864,1772698253214,-166.0,0.00042765,14]
[407712865,1772698253225,-151.0,0.000428,120]
[407712866,1772698253235,-500.0,0.00042849,120]
[407712867,1772698253244,-500.0,0.00042849,120]
[407712868,1772698253254,-153.0,0.000429,120]
[407712869,1772698253265,-2691.09483055,0.0004295,10]
[407712870,1772698253275,-500.0,0.00042986,120]
[407712871,1772698253286,-500.0,0.00042986,120]
[407712872,1772698253296,-506.04059704,0.00042998,5]
[407712873,1772698253305,-150.0,0.00043,120]
[407712874,1772698253315,-214.0,0.00043,7]
[407712875,1772698253325,-379.90001945,0.00043,120]
[407712876,1772698253335,-387.48523746,0.00043,30]
[407712877,1772698253344,-226.26358233,0.00043,120]
[407712878,1772698253354,-1445.44128456,0.00043,120]
[407712879,1772698253364,-351.64844837,0.00043,45]
[407712880,1772698253374,-818.79003939,0.00043,120]
[407712881,1772698253383,-757.60419047,0.00043,10]
[407712882,1772698253393,-150.0,0.00043033,14]
[407712883,1772698253402,-150.0,0.00043033,14]
[407712884,1772698253412,-210.0,0.00043033,14]
[407712885,1772698253422,-168.0,0.00043039,2]
[407712886,1772698253432,-250.02,0.00043068,120]
[407712887,1772698253442,-250.0,0.00043068,120]
[407712888,1772698253451,-250.0,0.00043068,120]
[407712889,1772698253461,-250.0,0.00043068,120]
[407712890,1772698253471,-250.0,0.00043068,120]
[407712891,1772698253482,-250.0,0.00043068,120]
[407712892,1772698253491,-500.0,0.00043123,120]
[407712893,1772698253501,-500.0,0.00043123,120]
[407712894,1772698253511,-1353.3,0.00043214,30]
[407712895,1772698253520,-10965.0,0.00043215,60]
[407712896,1772698253531,-500.0,0.0004326,120]
[407712897,1772698253545,-500.0,0.0004326,120]
[407712898,1772698253555,-580.87024451,0.00043287,120]
[407712899,1772698253565,-550.0,0.00043288,10]
[407712900,1772698253577,-272.0,0.00043308,21]
[407712901,1772698253587,-505.0,0.00043333,27]
[407712902,1772698253601,-152.0,0.00043351,10]
[407712903,1772698253612,-285.40038972,0.00043381,7]
[407712904,1772698253622,-500.0,0.00043397,120]
[407712905,1772698253632,-500.0,0.00043397,120]
[407712906,1772698253642,-168.0,0.00043405,2]
[407712907,1772698253651,-350.0,0.0004347,14]
[407712908,1772698253661,-864.78058953,0.00043496,2]
[407712909,1772698253672,-693.3919763,0.00043496,2]
[407712910,1772698253682,-150.0,0.000435,120]
[407712911,1772698253692,-168.0,0.00043507,2]
[407712912,1772698253701,-431.39303726,0.00043534,120]
[407712913,1772698253711,-500.0,0.00043534,120]
[407712914,1772698253720,-1084.31216265,0.00043562,10]
[407712915,1772698253730,-635.21163987,0.00043671,120]
[407712916,1772698253742,-912.38506192,0.000437,120]
[407712917,1772698253751,-168.0,0.00043781,2]
[407712918,1772698253761,-1000.0,0.000438,30]
[407712919,1772698253771,-1000.0,0.000438,30]
[407712920,1772698253781,-151.0,0.000438,120]
[407712921,1772698253791,-924.0153701,0.00043808,120]
[407712922,1772698253800,-168.0,0.00043824,7]
[407712923,1772698253810,-1363.36106609,0.00043835,120]
[407712924,1772698253820,-650.0,0.00043836,10]
[407712925,1772698253831,-164.80367716,0.00043836,5]
[407712926,1772698253840,-541.7769363,0.0004384,120]
[407712927,1772698253851,-541.7769363,0.0004384,120]
[407712928,1772698253863,-541.7769363,0.0004384,120]
[407712929,1772698253874,-541.7769363,0.0004384,120]
[407712930,1772698253884,-541.7769363,0.0004384,120]
[407712931,1772698253895,-541.7769363,0.0004384,120]
[407712932,1772698253905,-541.7769363,0.0004384,120]
[407712933,1772698253929,-541.7769363,0.0004384,120]
[407712934,1772698253939,-541.7769363,0.0004384,120]
[407712935,1772698253949,-541.7769363,0.0004384,120]
[407712936,1772698253961,-541.7769363,0.0004384,120]
[407712937,1772698253973,-541.7769363,0.0004384,120]
[407712938,1772698253982,-541.7769363,0.0004384,120]
[407712939,1772698253996,-541.7769363,0.0004384,120]
[407712940,1772698254005,-194.2003743,0.0004384,120]
[407712941,1772698254015,-194.2003743,0.0004384,120]
[407712942,1772698254024,-194.2003743,0.0004384,120]
[407712943,1772698254034,-194.2003743,0.0004384,120]
[407712944,1772698254044,-194.2003743,0.0004384,120]
[407712945,1772698254054,-194.2003743,0.0004384,120]
[407712946,1772698254064,-194.2003743,0.0004384,120]
[407712947,1772698254075,-194.2003743,0.0004384,120]
[407712948,1772698254084,-194.2003743,0.0004384,120]
[407712949,1772698254095,-194.2003743,0.0004384,120]
[407712950,1772698254105,-194.2003743,0.0004384,120]
[407712951,1772698254114,-194.2003743,0.0004384,120]
[407712952,1772698254124,-194.2003743,0.0004384,120]
[407712953,1772698254133,-194.2003743,0.0004384,120]
[407712954,1772698254143,-151.23181514,0.0004384,120]
[407712955,1772698254153,-151.23181514,0.0004384,120]
[407712956,1772698254163,-151.23181514,0.0004384,120]
[407712957,1772698254172,-151.23181514,0.0004384,120]
[407712958,1772698254183,-168.0,0.0004388,7]
[407712959,1772698254196,-980.39,0.0004389,7]
[407712960,1772698254205,-153.0,0.000439,120]
[407712961,1772698254215,-163.1196546,0.000439,120]
[407712962,1772698254225,-194.497917,0.000439,120]
[407712963,1772698254234,-1304.5501063,0.00043912,120]
[407712964,1772698254243,-168.0,0.00043969,2]
[407712965,1772698254253,-168.0,0.0004397,2]
[407712966,1772698254263,-284.89004217,0.00043981,30]
[407712967,1772698254274,-151.0,0.00043997,120]
[407712968,1772698254284,-150.0,0.00044,120]
[407712969,1772698254566,-372.35,0.00044,60]
[407712970,1772698254578,-11885.14658402,0.00044,2]
[407712971,1772698254588,-380.9862918,0.00044,120]
[407712972,1772698254597,-1302.7246797,0.00044,120]
[407712973,1772698254607,-1144.0960936,0.00044,120]
[407712974,1772698254617,-234.99085142,0.00044,120]
[407712975,1772698254627,-654.27888539,0.00044,2]
[407712976,1772698254636,-152.0,0.00044059,11]
[407712977,1772698254646,-81484.87507904,0.000441,2]
[407712978,1772698254655,-151.0,0.000441,120]
[407712979,1772698254665,-151.0,0.000441,120]
[407712980,1772698254674,-151.0,0.000441,120]
[407712981,1772698254683,-151.0,0.000441,120]
[407712982,1772698254694,-151.0,0.000441,120]
[407712983,1772698254703,-151.0,0.000441,120]
[407712984,1772698254712,-189.39942,0.000441,120]
[407712985,1772698254721,-292.964509,0.000441,120]
[407712986,1772698254730,-292.964509,0.000441,120]
[407712987,1772698254739,-151.0,0.000441,120]
[407712988,1772698254748,-292.964509,0.000441,120]
[407712989,1772698254758,-151.0,0.000441,120]
[407712990,1772698254767,-292.964509,0.000441,120]
[407712991,1772698254776,-151.0,0.000441,2]
[407712992,1772698254785,-151.0,0.000441,2]
[407712993,1772698254794,-151.0,0.000441,2]
[407712994,1772698254804,-151.0,0.000441,120]
[407712995,1772698254813,-151.0,0.000441,120]
[407712996,1772698254822,-151.0,0.000441,120]
[407712997,1772698254831,-151.0,0.000441,120]
[407712998,1772698254840,-228.57481425,0.000441,30]
[407712999,1772698254850,-784.32,0.00044122,90]
[407713000,1772698254859,-541.7769363,0.00044151,120]
[407713001,1772698254868,-194.2003743,0.00044151,120]
[407713002,1772698254877,-160.13,0.00044161,120]
[407713003,1772698254886,-454.71,0.000442,14]
[407713004,1772698254895,-160.13,0.00044261,120]
[407713005,1772698254904,-150.0,0.00044281,120]
[407713006,1772698254916,-582.28,0.00044361,120]
[407713007,1772698254925,-500.0,0.00044361,120]
[407713008,1772698254934,-160.13,0.00044361,120]
[407713009,1772698254943,-1031.08,0.00044371,90]
[407713010,1772698254952,-350.0,0.00044378,3]
[407713011,1772698254961,-258.7680076,0.00044384,10]
[407713012,1772698254970,-162.345,0.00044416,60]
[407713013,1772698254979,-173.56,0.00044416,60]
[407713014,1772698254988,-151.0,0.00044433,120]
[407713015,1772698254997,-151.0,0.00044433,120]
[407713016,1772698255006,-151.0,0.00044433,120]
[407713017,1772698255016,-198.000665,0.00044433,120]
[407713018,1772698255026,-151.0,0.00044433,120]
[407713019,1772698255036,-151.0,0.00044433,120]
[407713020,1772698255046,-151.0,0.00044433,120]
[407713021,1772698255064,-151.0,0.00044433,120]
[407713022,1772698255076,-151.0,0.00044433,120]
[407713023,1772698255087,-151.0,0.00044433,120]
[407713024,1772698255097,-151.0,0.00044433,120]
[407713025,1772698255107,-274.246192,0.00044433,120]
[407713026,1772698255118,-151.0,0.00044433,120]
[407713027,1772698255130,-151.0,0.00044433,120]
[407713028,1772698255142,-151.0,0.00044433,120]
[407713029,1772698255152,-299.0,0.00044433,120]
[407713030,1772698255161,-151.0,0.00044433,120]
[407713031,1772698255171,-151.0,0.00044433,120]
[407713032,1772698255180,-151.0,0.00044433,120]
[407713033,1772698255190,-151.0,0.00044433,120]
[407713034,1772698255200,-151.0,0.00044433,120]
[407713035,1772698255210,-155.718846,0.00044433,120]
[407713036,1772698255220,-155.718846,0.00044433,120]
[407713037,1772698255231,-155.718846,0.00044433,120]
[407713038,1772698255242,-155.718846,0.00044433,120]
[407713039,1772698255253,-503.068296,0.00044433,7]
[407713040,1772698255266,-151.0,0.00044433,120]
[407713041,1772698255277,-503.068296,0.00044433,7]
[407713042,1772698255288,-503.068296,0.00044433,7]
[407713043,1772698255297,-151.0,0.00044433,120]
[407713044,1772698255308,-503.068296,0.00044433,7]
[407713045,1772698255318,-151.0,0.00044433,120]
[407713046,1772698255328,-151.0,0.00044433,120]
[407713047,1772698255337,-154.272745,0.00044433,120]
[407713048,1772698255348,-883.233165,0.00044433,120]
[407713049,1772698255358,-883.233165,0.00044433,120]
[407713050,1772698255369,-151.0,0.00044433,120]
[407713051,1772698255379,-883.233165,0.00044433,120]
[407713052,1772698255388,-883.233165,0.00044433,120]
[407713053,1772698255398,-151.0,0.00044433,30]
[407713054,1772698255407,-151.0,0.00044433,30]
[407713055,1772698255416,-151.0,0.00044433,120]
[407713056,1772698255426,-602.683491,0.00044433,120]
[407713057,1772698255435,-151.0,0.00044433,120]
[407713058,1772698255446,-602.683491,0.00044433,120]
[407713059,1772698255455,-151.0,0.00044433,30]
[407713060,1772698255465,-151.0,0.00044433,120]
[407713061,1772698255475,-602.683491,0.00044433,120]
[407713062,1772698255484,-151.0,0.00044433,30]
[407713063,1772698255494,-602.683491,0.00044433,120]
[407713064,1772698255503,-992.845494,0.00044433,60]
[407713065,1772698255512,-151.0,0.00044433,120]
[407713066,1772698255522,-151.0,0.00044433,14]
[407713067,1772698255534,-266.559295,0.00044433,120]
[407713068,1772698255544,-151.0,0.00044433,14]
[407713069,1772698255554,-151.0,0.00044433,120]
[407713070,1772698255563,-992.845494,0.00044433,60]
[407713071,1772698255572,-992.845494,0.00044433,60]
[407713072,1772698255582,-992.845494,0.00044433,60]
[407713073,1772698255591,-151.0,0.00044433,120]
[407713074,1772698255600,-151.0,0.00044433,120]
[407713075,1772698255612,-151.0,0.00044433,120]
[407713076,1772698255622,-151.0,0.00044433,120]
[407713077,1772698255631,-255.421433,0.00044433,120]
[407713078,1772698255640,-255.421433,0.00044433,120]
[407713079,1772698255649,-151.0,0.00044433,30]
[407713080,1772698255658,-151.0,0.00044433,120]
[407713081,1772698255667,-255.421433,0.00044433,120]
[407713082,1772698255677,-151.0,0.00044433,120]
[407713083,1772698255687,-255.421433,0.00044433,120]
[407713084,1772698255697,-193.210993,0.00044433,120]
[407713085,1772698255706,-151.0,0.00044433,28]
[407713086,1772698255715,-151.0,0.00044433,28]
[407713087,1772698255724,-151.0,0.00044433,28]
[407713088,1772698255734,-151.0,0.00044433,120]
[407713089,1772698255744,-151.0,0.00044433,120]
[407713090,1772698255753,-151.0,0.00044433,120]
[407713091,1772698255762,-369.518395,0.00044433,120]
[407713092,1772698255772,-369.518395,0.00044433,120]
[407713093,1772698255781,-151.0,0.00044433,120]
[407713094,1772698255790,-435.511801,0.00044433,120]
[407713095,1772698255800,-369.518395,0.00044433,120]
[407713096,1772698255809,-435.511801,0.00044433,120]
[407713097,1772698255818,-369.518395,0.00044433,120]
[407713098,1772698255827,-435.511801,0.00044433,120]
[407713099,1772698255837,-435.511801,0.00044433,120]
[407713100,1772698255847,-151.0,0.00044433,120]
[407713101,1772698255856,-358.942849,0.00044433,120]
[407713102,1772698255866,-358.942849,0.00044433,120]
[407713103,1772698255875,-358.942849,0.00044433,120]
[407713104,1772698255884,-358.942849,0.00044433,120]
[407713105,1772698255894,-151.0,0.00044433,120]
[407713106,1772698255903,-151.0,0.00044433,120]
[407713107,1772698255932,-151.0,0.00044433,120]
[407713108,1772698255943,-166.673279,0.00044433,120]
[407713109,1772698255953,-151.0,0.00044433,120]
[407713110,1772698255964,-166.673279,0.00044433,120]
[407713111,1772698255973,-166.673279,0.00044433,120]
[407713112,1772698255982,-166.673279,0.00044433,120]
[407713113,1772698255992,-151.0,0.00044433,120]
[407713114,1772698256000,-339.533589,0.00044433,120]
[407713115,1772698256014,-284.460215,0.00044433,120]
[407713116,1772698256023,-339.533589,0.00044433,120]
[407713117,1772698256033,-151.0,0.00044433,120]
[407713118,1772698256043,-284.460215,0.00044433,120]
[407713119,1772698256052,-339.533589,0.00044433,120]
[407713120,1772698256062,-284.460215,0.00044433,120]
[407713121,1772698256072,-339.533589,0.00044433,120]
[407713122,1772698256082,-284.460215,0.00044433,120]
[407713123,1772698256092,-151.0,0.00044433,120]
[407713124,1772698256101,-151.0,0.00044433,120]
[407713125,1772698256111,-694.262533,0.00044433,15]
[407713126,1772698256120,-213.941419,0.00044433,120]
[407713127,1772698256131,-694.262533,0.00044433,15]
[407713128,1772698256142,-151.0,0.00044433,120]
[407713129,1772698256154,-151.0,0.00044433,120]
[407713130,1772698256165,-506.719035,0.00044433,120]
[407713131,1772698256175,-694.262533,0.00044433,15]
[407713132,1772698256187,-694.262533,0.00044433,15]
[407713133,1772698256196,-277.927594,0.00044433,14]
[407713134,1772698256207,-277.927594,0.00044433,14]
[407713135,1772698256218,-277.927594,0.00044433,14]
[407713136,1772698256229,-506.719035,0.00044433,120]
[407713137,1772698256240,-277.927594,0.00044433,14]
[407713138,1772698256251,-506.719035,0.00044433,120]
[407713139,1772698256264,-178.14104,0.00044433,120]
[407713140,1772698256275,-506.719035,0.00044433,120]
[407713141,1772698256286,-1006.737687,0.00044433,120]
[407713142,1772698256296,-160.665771,0.00044433,120]
[407713143,1772698256307,-178.14104,0.00044433,120]
[407713144,1772698256318,-1006.737687,0.00044433,120]
[407713145,1772698256329,-178.14104,0.00044433,120]
[407713146,1772698256340,-178.14104,0.00044433,120]
[407713147,1772698256349,-1006.737687,0.00044433,120]
[407713148,1772698256360,-1006.737687,0.00044433,120]
[407713149,1772698256370,-1229.313375,0.00044433,120]
[407713150,1772698256382,-1229.313375,0.00044433,120]
[407713151,1772698256391,-1229.313375,0.00044433,120]
[407713152,1772698256402,-1229.313375,0.00044433,120]
[407713153,1772698256412,-493.726656,0.00044433,120]
[407713154,1772698256422,-493.726656,0.00044433,120]
[407713155,1772698256431,-493.726656,0.00044433,120]
[407713156,1772698256441,-463.564965,0.00044433,120]
[407713157,1772698256451,-493.726656,0.00044433,120]
[407713158,1772698256461,-463.564965,0.00044433,120]
[407713159,1772698256470,-203.306638,0.00044433,120]
[407713160,1772698256480,-463.564965,0.00044433,120]
[407713161,1772698256490,-214.200025,0.00044433,120]
[407713162,1772698256499,-214.200025,0.00044433,120]
[407713163,1772698256509,-151.0,0.00044433,120]
[407713164,1772698256518,-214.200025,0.00044433,120]
[407713165,1772698256528,-463.564965,0.00044433,120]
[407713166,1772698256538,-214.200025,0.00044433,120]
[407713167,1772698256549,-193.979016,0.00044433,120]
[407713168,1772698256558,-352.137721,0.00044433,120]
[407713169,1772698256567,-151.0,0.00044433,120]
[407713170,1772698256577,-352.137721,0.00044433,120]
[407713171,1772698256587,-352.137721,0.00044433,120]
[407713172,1772698256597,-352.137721,0.00044433,120]
[407713173,1772698256606,-182.176333,0.00044433,120]
[407713174,1772698256617,-182.176333,0.00044433,120]
[407713175,1772698256627,-182.176333,0.00044433,120]
[407713176,1772698256636,-182.176333,0.00044433,120]
[407713177,1772698256645,-1000.977778,0.00044433,120]
[407713178,1772698256654,-1000.977778,0.00044433,120]
[407713179,1772698256663,-1000.977778,0.00044433,120]
[407713180,1772698256673,-1000.977778,0.00044433,120]
[407713181,1772698256683,-51850.32478141,0.00044433,2]
[407713182,1772698257560,-531.13294994,0.00044433,2]
[407713183,1772698257863,-421.70897596,0.00044433,2]
[407713184,1772698257875,-841.41446949,0.00044433,2]
[407713185,1772698257886,-434.15793142,0.00044433,2]
[407713186,1772698257898,-20498.41114053,0.00044433,2]
[407713187,1772698257909,-6422.7041137,0.00044433,2]
[407713188,1772698257921,-558.62352788,0.00044433,2]
[407713189,1772698257933,-3912.29123127,0.00044433,2]
[407713190,1772698257945,-347.77551916,0.00044433,2]
[407713191,1772698258560,-457.52,0.00031693,30]
[407713192,1772698258571,-189.624941,0.00041902,120]
[407713193,1772698258580,-443.85505901,0.00041902,120]
[407713194,1772698258656,-457.52,0.00033076,30]
[407713195,1772698258669,-485.26218099,0.00041902,120]
[407713196,1772698258678,-151.0,0.00041902,120]
[407713197,1772698258687,-47.48825868,0.00041902,120]
[407713198,1772698258698,-103.51174132,0.00041902,120]
[407713199,1772698258707,-189.624941,0.00041902,120]
[407713200,1772698258716,-328.99423799,0.00041902,120]
[407713201,1772698258820,-600.12300201,0.00041902,120]
[407713202,1772698258830,-151.0,0.00041902,120]
[407713203,1772698258839,-308.67861533,0.00042094,2]
[407713204,1772698258850,-464.93400002,0.00042094,2]
[407713205,1772698261243,-457.52,0.00034459,60]